bitfinex/quotes_ETHUSD_20260217
["timestamp","ask_amount","ask_price","bid_price","bid_amount"]
[1771347572635,1.26175513,1983.1,1982.3,1.26116127]
[1771347572843,0.0011,1983.1,1982.3,0.46947711]
[1771347574826,0.0011,1983.1,1982.4,1.26109765]
[1771347575908,0.0011,1983.1,1982.5,0.95847711]
[1771347576137,0.0011,1983.1,1982.5,0.489]
[1771347576344,0.0011,1983.1,1982.4,1.75009765]
[1771347576641,0.0011,1983.1,1982.5,0.46947711]
[1771347577023,0.0011,1983.1,1982.5,1.74998254]
[1771347579444,0.0011,1983.1,1982.5,2.21945965]
[1771347579643,0.0011,1983.1,1982.6,0.001]
[1771347580411,0.0011,1983.1,1982.6,0.47047711]
[1771347581307,0.0011,1983.1,1982.6,0.001]
[1771347581503,0.0011,1983.1,1982.6,1.26196867]
[1771347581708,0.0011,1983.1,1982.6,0.001]
[1771347582435,0.0011,1983.1,1982.6,1.26196987]
[1771347582636,0.0011,1983.1,1982.6,1.26195227]
[1771347583211,0.0011,1983.1,1982.6,0.001]
[1771347586215,0.25013669,1983.1,1982.6,0.001]
[1771347587438,1.26071608,1983.0,1982.6,0.001]
[1771347588042,0.0011,1983.1,1982.6,0.001]
[1771347588242,1.26175846,1983.1,1982.6,0.001]
[1771347589850,0.0011,1983.1,1982.6,0.001]
[1771347593248,0.0011,1983.1,1982.6,0.47124018]
[1771347593446,0.0011,1983.1,1982.6,0.001]
[1771347593751,0.0011,1983.1,1982.6,0.47124018]
[1771347593925,0.0011,1983.1,1982.7,1.26090684]
[1771347594539,0.0011,1983.1,1982.8,0.47024018]
[1771347595948,0.0011,1983.1,1982.6,5.04462737]
[1771347595949,0.0011,1983.1,1982.6,1.75497044]
[1771347596150,0.0011,1983.1,1982.6,0.001]
[1771347597962,0.0011,1983.1,1982.7,1.26090684]
[1771347599172,0.0011,1983.1,1982.6,1.26196501]
[1771347599957,0.0011,1983.1,1982.6,0.001]
[1771347600164,0.0011,1983.1,1982.6,0.47124018]
[1771347600369,0.0011,1983.1,1982.6,0.001]
[1771347601897,0.25013669,1983.1,1982.6,0.001]
[1771347602173,0.24803669,1982.8,1982.0,0.0070541]
[1771347602337,0.24803669,1982.5,1981.1,1.73213015]
[1771347602538,0.24803669,1982.2,1981.1,1.73213015]
[1771347602777,0.24803669,1982.8,1981.2,0.47224018]
[1771347602942,0.725,1982.7,1981.5,0.47024018]
[1771347603348,0.725,1982.7,1981.7,0.47024018]
[1771347603543,0.725,1982.7,1981.9,0.47024018]
[1771347603737,0.725,1982.7,1982.0,0.47224018]
[1771347603946,1.26097044,1982.6,1982.0,1.26331019]
[1771347604150,0.725,1982.7,1982.0,1.73355037]
[1771347605247,0.725,1982.7,1982.0,1.73155037]
[1771347605869,0.0011,1983.1,1982.1,0.47224018]
[1771347606078,0.0011,1983.1,1982.2,1.2612249]
[1771347606279,0.24913669,1983.1,1982.1,1.26324079]
[1771347606447,0.24803669,1982.9,1982.1,0.002]
[1771347606848,0.24803669,1982.9,1981.7,0.47024018]
[1771347606849,0.24803669,1982.7,1981.7,1.26149199]
[1771347607101,0.24803669,1982.7,1981.8,0.002]
[1771347607548,0.24803669,1982.6,1981.8,0.002]
[1771347607751,0.24803669,1982.6,1982.1,0.001]
[1771347608270,0.24803669,1982.4,1982.0,0.001]
[1771347608489,0.724,1982.3,1982.0,0.001]
[1771347609151,5.29167261,1982.7,1982.0,0.003]
[1771347609152,1.9849482,1982.7,1982.0,0.003]
[1771347609496,1.633,1982.8,1982.0,0.003]
[1771347609646,2.89386405,1982.8,1982.0,0.003]
[1771347610071,1.633,1982.8,1982.0,0.47324018]
[1771347610374,0.909,1982.8,1982.1,1.73152871]
[1771347610555,0.909,1982.8,1982.1,1.26128853]
[1771347610878,2.16984366,1982.8,1982.2,0.002]
[1771347611387,0.725,1982.7,1982.0,0.001]
[1771347611554,0.725,1982.7,1982.1,0.002]
[1771347612376,1.26097044,1982.6,1982.1,0.002]
[1771347612688,1.98595723,1982.7,1982.1,0.002]
[1771347612988,1.98590721,1982.7,1982.1,0.002]
[1771347613219,0.725,1982.7,1982.1,0.002]
[1771347613351,1.98591077,1982.7,1982.1,0.002]
[1771347613550,0.725,1982.7,1982.1,0.002]
[1771347613782,0.909,1982.8,1982.1,0.47224018]
[1771347613971,0.7271,1983.1,1982.1,0.47024018]
[1771347614149,0.7271,1983.1,1982.4,1.26109765]
[1771347614350,0.0011,1983.1,1982.4,1.75083128]
[1771347614577,0.0011,1983.1,1982.5,0.49173363]
[1771347614789,1.26175998,1983.1,1982.5,0.002]
[1771347615084,0.0011,1983.1,1982.5,0.002]
[1771347615395,0.0011,1983.1,1982.5,0.49173363]
[1771347615562,1.26176107,1983.1,1982.5,0.002]
[1771347616272,0.0011,1983.1,1982.5,0.002]
[1771347617483,0.0011,1983.1,1982.6,0.002]
[1771347617794,0.0011,1983.1,1982.4,0.002]
[1771347619097,0.0011,1983.1,1982.5,0.002]
[1771347620429,0.0011,1983.1,1982.5,1.26303404]
[1771347621016,0.0011,1983.1,1982.5,0.002]
[1771347621927,0.0011,1983.1,1982.1,0.001]
[1771347621928,0.97113669,1983.0,1982.1,0.001]
[1771347622081,0.97113669,1983.0,1982.2,0.002]
[1771347622516,1.26077966,1982.9,1982.2,0.002]
[1771347622720,0.24803669,1982.8,1982.2,0.002]
[1771347623089,0.24803669,1982.8,1982.1,0.001]
[1771347623300,0.24803669,1982.8,1982.1,0.003]
[1771347624084,0.24803669,1982.8,1982.1,0.001]
[1771347624522,0.24803669,1982.6,1982.1,0.001]
[1771347624680,0.721,1982.5,1982.1,0.001]
[1771347624879,0.721,1982.5,1981.2,5.04739752]
[1771347624880,0.24803669,1982.4,1981.2,5.04739752]
[1771347625126,0.24803669,1982.4,1981.3,0.002]
[1771347625287,0.721,1982.5,1981.3,0.002]
[1771347625288,0.721,1982.5,1981.3,0.49173363]
[1771347625489,0.721,1982.5,1981.4,0.002]
[1771347625914,0.24803669,1982.4,1981.4,0.002]
[1771347626524,1.50919796,1982.3,1981.4,0.002]
[1771347626818,1.15703669,1982.2,1981.4,0.002]
[1771347627906,0.24803669,1982.1,1981.4,0.002]
[1771347628104,0.722,1982.0,1981.4,0.002]
[1771347628535,1.26141581,1981.9,1981.4,0.002]
[1771347628939,1.26141581,1981.9,1980.2,0.48973363]
[1771347628940,0.24803669,1981.8,1980.2,0.48973363]
[1771347629233,1.26141581,1981.9,1980.4,0.48973363]
[1771347630754,5.76766325,1982.0,1980.4,0.48973363]
[1771347630755,1.98335919,1982.0,1980.7,0.48973363]
[1771347631507,1.98335254,1982.0,1980.7,0.48973363]
[1771347632737,1.98335254,1982.0,1980.9,0.48973363]
[1771347633108,2.23138923,1982.0,1980.8,1.26211631]
[1771347633307,5.04440911,1982.4,1980.8,1.26211631]
[1771347633308,7.76627163,1982.5,1980.9,0.48973363]
[1771347633547,0.723,1982.3,1980.9,0.48973363]
[1771347634736,0.723,1982.3,1981.2,0.48973363]
[1771347635353,0.723,1982.3,1981.5,0.48973363]
[1771347635576,0.723,1982.3,1981.1,7.1552401]
[1771347635577,0.721,1982.9,1981.8,0.48973363]
[1771347636027,11.201724,1982.8,1981.5,0.48973363]
[1771347636356,18.027517,1982.7,1981.5,0.48973363]
[1771347636529,22.45140069,1982.6,1981.2,0.98573363]
[1771347636724,1.26109765,1982.4,1981.3,1.2617978]
[1771347636931,0.722,1982.3,1981.3,1.2617978]
[1771347637130,0.97003669,1982.3,1981.3,1.2617978]
[1771347637473,0.97003669,1982.3,1981.0,0.48973363]
[1771347637851,0.722,1982.3,1981.0,0.48973363]
[1771347638654,1.26128853,1982.1,1981.1,1.26192519]
[1771347638861,0.24803669,1982.0,1981.0,1.26194467]
[1771347639154,0.24803669,1982.0,1980.9,1.26201113]
[1771347639771,7.40327679,1981.9,1980.8,0.001]
[1771347639928,0.724,1981.8,1980.8,0.001]
[1771347640130,0.909,1981.7,1980.8,0.001]
[1771347640639,1.15703669,1981.7,1980.8,0.001]
[1771347640843,1.26160678,1981.6,1980.8,0.001]
[1771347641048,0.24803669,1981.5,1980.8,0.001]
[1771347641679,1.26160678,1981.6,1980.8,0.001]
[1771347641829,2.141404,1981.5,1980.8,0.001]
[1771347642248,2.38944069,1981.5,1980.8,0.001]
[1771347642466,0.24803669,1981.5,1980.8,0.001]
[1771347642776,1.98578358,1981.4,1980.8,0.001]
[1771347644151,0.724,1981.5,1980.8,0.49073363]
[1771347644960,0.909,1981.8,1981.0,0.46693653]
[1771347645155,2.17049983,1981.8,1980.9,1.2620526]
[1771347645375,2.41853652,1981.8,1980.8,0.001]
[1771347646556,3.00802,1981.7,1980.8,0.001]
[1771347646982,1.26160678,1981.6,1980.8,0.001]
[1771347647668,1.26159011,1981.7,1980.8,0.46793653]
[1771347648058,1.26135216,1982.0,1980.8,0.46793653]
[1771347648386,0.727,1981.7,1980.8,0.46793653]
[1771347648598,0.727,1981.9,1980.8,0.46793653]
[1771347648945,0.727,1981.9,1981.1,0.46693653]
[1771347649378,0.727,1982.1,1981.1,0.46693653]
[1771347650562,0.727,1982.1,1981.2,0.46693653]
[1771347651080,0.727,1982.1,1981.3,1.2617978]
[1771347651250,0.727,1982.1,1981.4,0.46693653]
[1771347652463,1.98829565,1982.1,1981.4,0.46693653]
[1771347652676,1.98829565,1982.1,1981.3,1.2617978]
[1771347653067,1.98829565,1982.1,1981.2,1.26186149]
[1771347653671,1.98829565,1982.1,1981.2,1.7548435]
[1771347654068,1.98829565,1982.1,1981.1,1.26187478]
[1771347654271,2.23633234,1982.1,1981.0,1.26193851]
[1771347654485,24.4985321,1982.0,1980.9,1.26304958]
[1771347654676,12.401597,1981.8,1980.9,0.001]
[1771347654879,9.110225,1981.8,1980.9,1.26304717]
[1771347655190,1.98829565,1982.1,1981.0,0.49298201]
[1771347655191,1.26130462,1982.1,1981.0,0.49298201]
[1771347655358,0.726,1982.0,1981.0,0.49298201]
[1771347656464,7.8812401,1982.0,1980.9,1.26303967]
[1771347656864,12.63347,1981.9,1980.9,1.26304834]
[1771347657090,1.98739826,1982.0,1980.9,1.75603035]
[1771347657293,1.98739826,1982.0,1981.0,0.49298201]
[1771347658204,0.7271,1982.2,1981.1,0.49298201]
[1771347658499,0.7271,1982.2,1981.2,0.49298201]
[1771347659064,1.98833242,1982.2,1981.4,0.49298201]
[1771347659292,1.98833242,1982.2,1981.3,1.2617978]
[1771347660501,0.7271,1982.2,1981.3,1.75477981]
[1771347660841,0.0011,1982.2,1981.4,0.49298201]
[1771347660961,1.26233422,1982.2,1981.4,0.49298201]
[1771347661162,0.0011,1982.2,1981.2,1.26182122]
[1771347661407,7.292067,1982.0,1980.9,1.26300809]
[1771347661585,0.724,1981.9,1980.9,1.7559901]
[1771347661779,0.724,1981.9,1981.0,0.49298201]
[1771347663412,1.26147946,1981.8,1980.9,1.26300809]
[1771347663578,1.26147946,1981.8,1980.9,0.001]
[1771347663773,10.109502,1981.7,1980.9,0.001]
[1771347663974,4.878482,1981.7,1980.9,0.001]
[1771347664374,4.878482,1981.7,1981.2,0.001]
[1771347664803,1.26147946,1981.8,1981.2,0.001]
[1771347665102,0.723,1981.6,1981.2,0.001]
[1771347665411,1.26167045,1981.5,1981.2,0.001]
[1771347666422,1.98465848,1981.6,1981.2,0.001]
[1771347666725,0.725,1981.8,1981.2,0.001]
[1771347667220,12.09968,1981.7,1981.2,0.001]
[1771347667391,1.26160678,1981.6,1981.2,0.001]
[1771347667590,1.26160678,1981.6,1980.9,0.001]
[1771347668409,11.037363,1981.5,1980.9,0.001]
[1771347668611,2.05732,1981.5,1980.9,0.001]
[1771347668920,1.26160678,1981.6,1980.9,0.001]
[1771347669421,5.04642712,1981.7,1980.9,0.001]
[1771347669720,1.26154311,1981.7,1980.9,0.001]
[1771347670993,1.26146102,1981.9,1980.9,0.49398201]
[1771347671194,0.727,1981.8,1980.9,0.49398201]
[1771347671594,0.727,1981.8,1981.1,0.49298201]
[1771347672911,1.98848609,1981.8,1981.0,1.26198889]
[1771347673225,1.98848609,1981.8,1980.9,0.001]
[1771347673522,1.26160678,1981.6,1980.9,0.001]
[1771347674234,1.26157334,1981.7,1980.9,0.001]
[1771347674394,0.727,1981.8,1980.9,0.45581767]
[1771347674594,1.98848714,1981.8,1980.9,0.45581767]
[1771347674994,1.98848714,1981.8,1980.9,0.001]
[1771347675938,2.23652383,1981.8,1980.9,0.001]
[1771347676421,14.135733,1981.7,1980.9,0.001]
[1771347676630,12.51467,1981.5,1980.9,0.001]
[1771347676830,0.909,1981.4,1980.9,0.001]
[1771347677024,0.724,1981.3,1980.9,0.001]
[1771347677728,1.26186149,1981.2,1980.9,0.001]
[1771347678299,1.26186149,1981.2,1981.0,0.001]
[1771347678535,1.50989818,1981.2,1979.8,0.45481767]
[1771347678705,6.86423195,1981.1,1979.9,1.26269003]
[1771347679032,6.86423195,1981.1,1980.7,0.001]
[1771347679234,6.86423195,1981.1,1979.5,1.71775282]
[1771347679235,6.86423195,1980.8,1979.5,1.71775282]
[1771347679455,6.61619526,1979.9,1979.1,1.09189732]
[1771347679737,23.282126,1980.1,1979.1,1.09189732]
[1771347679738,1.26256249,1980.1,1979.1,2.35508183]
[1771347679901,1.26237123,1980.4,1979.2,0.45481767]
[1771347680433,1.637,1980.3,1979.2,0.45481767]
[1771347680598,5.146279,1980.7,1979.2,7.07101293]
[1771347680803,1.637,1980.6,1979.3,0.45481767]
[1771347681435,1.637,1980.6,1979.5,0.45481767]
[1771347681641,1.26218003,1980.7,1979.5,0.45481767]
[1771347681642,0.726,1980.5,1979.7,0.45481767]
[1771347682309,5.04781348,1981.1,1979.7,0.45481767]
[1771347682513,0.726,1980.8,1979.8,0.45481767]
[1771347682811,0.0011,1981.7,1980.6,0.45481767]
[1771347683027,11.35711344,1981.6,1980.6,0.45481767]
[1771347683239,11.35711344,1981.6,1980.0,0.45481767]
[1771347683529,1.636,1981.5,1980.5,0.45481767]
[1771347683916,11.35711344,1981.4,1980.5,0.45481767]
[1771347684636,1.26267503,1981.7,1980.4,1.26237123]
[1771347684637,0.0011,1981.7,1980.8,0.45481767]
[1771347684837,0.0011,1982.0,1981.1,0.45481767]
[1771347685012,11.35821344,1982.0,1981.1,0.45481767]
[1771347685407,11.35711344,1981.9,1981.1,0.45481767]
[1771347685727,11.35711344,1981.9,1981.2,1.26186149]
[1771347685912,11.35711344,1981.9,1981.3,0.45481767]
[1771347686118,0.7291,1982.0,1981.3,0.45481767]
[1771347686324,0.728,1982.1,1981.3,0.45481767]
[1771347686843,0.0011,1982.2,1981.4,0.45481767]
[1771347687155,1.26182363,1983.0,1981.7,0.45481767]
[1771347687304,0.728,1982.8,1981.7,0.45481767]
[1771347687709,0.728,1982.8,1981.9,0.45481767]
[1771347688131,0.7281,1983.0,1981.9,0.45481767]
[1771347688448,1.98882073,1983.0,1981.9,0.45481767]
[1771347689741,1.98882073,1983.0,1982.0,1.26135216]
[1771347690314,1.9888218,1983.0,1982.0,1.26135216]
[1771347690519,1.26181808,1983.0,1982.1,0.45481767]
[1771347691560,1.26182081,1983.0,1982.0,1.26135216]
[1771347691721,0.0011,1982.7,1982.0,1.26135216]
[1771347692560,0.0011,1982.7,1981.9,1.26136478]
[1771347692770,0.726,1982.6,1981.5,1.26167045]
[1771347693818,1.26103404,1982.5,1981.5,1.26167045]
[1771347695025,6.86533195,1982.3,1980.7,0.94481767]
[1771347695328,7.44559169,1982.1,1980.7,0.45481767]
[1771347695563,1.635,1982.0,1980.7,0.45481767]
[1771347696427,1.635,1982.0,1980.8,1.26211631]
[1771347696428,1.26141581,1981.9,1980.8,1.26211631]
[1771347698654,1.26141581,1981.9,1980.8,1.71693398]
[1771347698844,0.726,1981.8,1980.8,1.71693398]
[1771347699041,0.726,1981.8,1980.9,0.45481767]
[1771347699942,1.26133463,1982.1,1980.9,0.45481767]
[1771347700149,0.0011,1982.7,1981.6,0.45481767]
[1771347700361,1.26201247,1982.7,1981.6,0.45481767]
[1771347700664,0.0011,1982.7,1981.8,1.26147946]
[1771347700871,0.0011,1982.7,1981.7,1.2614905]
[1771347702758,0.0011,1982.7,1981.5,5.50148233]
[1771347702960,0.0011,1982.7,1981.6,0.45481767]
[1771347703335,0.729,1982.6,1981.6,0.45481767]
[1771347704159,0.729,1982.6,1981.7,0.494]
[1771347704371,0.729,1982.6,1981.7,0.94881767]
[1771347704537,0.7301,1982.6,1981.7,0.94881767]
[1771347704962,1.99108054,1982.6,1981.8,1.26147946]
[1771347706081,0.7301,1982.6,1981.8,1.26147946]
[1771347706266,0.7301,1982.6,1981.8,1.74683551]
[1771347706592,1.99107185,1982.6,1981.8,1.26147946]
[1771347706769,1.99107879,1982.6,1981.8,1.26147946]
[1771347706968,1.99107357,1982.6,1981.6,5.5327495]
[1771347707165,1.99107357,1982.6,1981.7,0.48535605]
[1771347707500,1.99107159,1982.6,1981.7,0.48535605]
[1771347707660,1.99107159,1982.6,1981.6,5.04739345]
[1771347707982,1.99107159,1982.6,1981.6,0.001]
[1771347708359,0.24913669,1982.5,1981.6,0.001]
[1771347708957,1.26109765,1982.4,1981.6,0.001]
[1771347709178,1.99111911,1982.6,1981.6,0.48635605]
[1771347709876,0.7271,1982.6,1981.6,0.48635605]
[1771347710186,1.98807736,1982.6,1981.6,0.48635605]
[1771347710387,0.7271,1982.6,1981.6,0.48635605]
[1771347710587,1.98807298,1982.6,1981.6,0.48635605]
[1771347711006,0.7271,1982.6,1981.7,1.26154311]
[1771347711205,1.98807143,1982.6,1981.7,1.26154311]
[1771347711508,1.98807143,1982.6,1981.6,1.26257332]
[1771347713216,1.98807143,1982.6,1981.6,0.001]
[1771347713635,2.23720812,1982.6,1981.6,0.001]
[1771347714456,1.98807143,1982.6,1981.6,0.48061647]
[1771347714728,0.729,1982.5,1981.6,0.48061647]
[1771347715230,1.99004001,1982.5,1981.7,1.26154311]
[1771347715743,1.99004001,1982.5,1981.6,1.74218856]
[1771347717937,1.99006847,1982.5,1981.7,0.47961647]
[1771347718821,0.0011,1982.4,1981.7,0.47961647]
[1771347720037,0.0011,1982.4,1981.9,0.47961647]
[1771347720411,0.0011,1982.6,1982.0,0.47961647]
[1771347721058,0.0011,1982.8,1982.2,6.61619526]
[1771347721261,0.0011,1983.0,1982.1,0.47961647]
[1771347721469,1.26185164,1983.0,1982.1,0.47961647]
[1771347721759,1.98881756,1983.0,1982.1,0.47961647]
[1771347722052,1.98881756,1983.0,1981.8,2.23509593]
[1771347722352,1.98881756,1983.0,1981.7,1.75549969]
[1771347722353,0.24913669,1982.9,1981.7,1.75549969]
[1771347723322,0.24913669,1982.9,1981.7,2.23511616]
[1771347724338,1.26084325,1982.8,1981.7,2.23511616]
[1771347724856,0.24913669,1982.7,1981.6,0.001]
[1771347725054,15.293023,1982.6,1981.6,0.001]
[1771347725224,1.635,1982.5,1981.6,0.001]
[1771347725422,0.24913669,1982.4,1981.6,0.001]
[1771347725663,6.86533195,1982.3,1981.6,0.001]
[1771347725847,11.37373,1982.1,1981.6,0.001]
[1771347726152,0.726,1982.0,1981.3,0.001]
[1771347726355,1.26141581,1981.9,1981.3,0.001]
[1771347726970,1.98832184,1982.1,1981.3,0.48061647]
[1771347727262,0.727,1982.1,1981.3,0.48061647]
[1771347727436,0.727,1982.1,1981.4,0.47961647]
[1771347727632,0.726,1982.3,1981.4,0.47961647]
[1771347728244,0.726,1982.6,1981.4,0.47961647]
[1771347728453,1.26103404,1982.5,1981.6,0.47961647]
[1771347728664,1.26103404,1982.5,1981.5,1.26167045]
[1771347729032,1.26103404,1982.5,1981.4,5.5416818]
[1771347729033,1.26103404,1982.5,1981.4,1.26168208]
[1771347729657,1.26103404,1982.5,1981.3,1.74241039]
[1771347730265,1.26103404,1982.5,1981.3,0.48061647]
[1771347730467,1.51017073,1982.5,1981.3,0.001]
[1771347730656,13.450447,1982.4,1981.3,0.001]
[1771347731164,9.430009,1982.4,1981.3,0.001]
[1771347731368,1.26103404,1982.5,1981.3,1.74240109]
[1771347731559,0.729,1982.4,1981.4,0.47961647]
[1771347732340,1.26116127,1982.3,1981.7,0.001]
[1771347734269,1.26116127,1982.3,1981.5,1.26267045]
[1771347734472,0.729,1982.4,1981.5,0.48878606]
[1771347734768,1.99010284,1982.4,1981.5,0.48878606]
[1771347734968,0.0011,1982.5,1981.7,0.48778606]
[1771347735350,0.0011,1982.5,1981.9,0.48778606]
[1771347735892,0.0011,1982.5,1982.0,0.48778606]
[1771347736069,0.0011,1982.8,1982.2,0.48778606]
[1771347736586,0.0011,1982.8,1982.2,1.26119119]
[1771347736783,0.0011,1982.8,1982.2,1.74897725]
[1771347737146,0.0011,1982.8,1982.3,0.48778606]
[1771347737782,0.0011,1983.1,1982.4,0.98378606]
[1771347737985,0.0011,1983.1,1982.4,0.48778606]
[1771347738155,0.0011,1983.1,1982.4,0.98378606]
[1771347738358,0.0011,1983.1,1982.5,1.26103404]
[1771347738788,0.0011,1983.1,1982.5,1.7488201]
[1771347739449,0.0011,1983.2,1982.8,0.48778606]
[1771347739653,0.0011,1983.4,1982.9,0.48778606]
[1771347739886,0.0011,1983.7,1982.9,0.48778606]
[1771347740086,1.2613763,1983.7,1982.9,0.48778606]
[1771347740267,1.2613763,1983.7,1982.9,0.98678606]
[1771347740452,0.0011,1983.7,1983.0,1.26071608]
[1771347741499,0.0011,1983.7,1983.0,0.48778606]
[1771347742656,0.0011,1983.8,1983.1,0.48778606]
[1771347743499,0.909,1984.2,1983.4,0.48778606]
[1771347743703,0.909,1984.2,1983.5,0.48778606]
[1771347744068,0.909,1984.2,1983.1,0.48778606]
[1771347745202,0.0011,1984.5,1983.3,0.48778606]
[1771347745872,0.0011,1984.1,1983.3,0.48778606]
[1771347746074,0.0011,1984.1,1983.4,0.5]
[1771347746272,0.0011,1984.1,1983.2,8.06428298]
[1771347746273,0.0011,1984.4,1983.2,7.64306904]
[1771347746479,0.0011,1984.4,1983.3,0.499]
[1771347746672,0.0011,1984.4,1983.4,0.48778606]
[1771347747265,0.0011,1984.4,1983.4,0.98678606]
[1771347747569,0.0011,1984.4,1983.5,0.48778606]
[1771347748573,0.0011,1984.4,1983.6,0.499]
[1771347748774,0.0011,1984.4,1983.5,0.48778606]
[1771347749196,0.0011,1984.4,1983.1,7.15528298]
[1771347749197,0.25133669,1984.4,1983.1,0.48778606]
[1771347749381,0.25133669,1984.4,1983.2,0.498]
[1771347749780,0.0011,1984.4,1983.2,0.98578606]
[1771347749977,0.0011,1984.4,1983.3,0.48778606]
[1771347750276,0.0011,1984.4,1983.3,0.498]
[1771347750482,0.0011,1984.4,1982.9,1.39678606]
[1771347750483,0.0011,1984.4,1982.9,0.48778606]
[1771347750681,1.16033669,1984.4,1983.0,0.498]
[1771347751008,0.0011,1984.4,1983.1,0.48778606]
[1771347751223,0.0011,1984.5,1983.6,7.64306904]
[1771347751435,0.0011,1984.5,1983.4,0.48778606]
[1771347752115,0.25133669,1984.5,1983.0,7.64306904]
[1771347752304,0.25133669,1984.5,1983.2,0.498]
[1771347752622,1.16033669,1984.5,1983.2,0.498]
[1771347753020,1.16033669,1984.5,1983.2,0.98578606]
[1771347753809,0.9101,1984.5,1983.3,0.48778606]
[1771347754012,0.9101,1984.5,1983.4,0.48778606]
[1771347754322,0.0011,1984.5,1983.4,0.48778606]
[1771347754989,0.0011,1984.5,1983.7,0.48778606]
[1771347755808,0.0011,1984.5,1983.4,0.497]
[1771347756800,0.0011,1984.5,1983.3,7.15528298]
[1771347756999,0.0011,1984.5,1983.3,0.48778606]
[1771347757602,0.0011,1984.5,1983.6,0.48778606]
[1771347757933,0.0011,1984.4,1983.6,0.98278606]
[1771347758695,0.0011,1984.4,1983.6,0.48778606]
[1771347758892,0.0011,1984.4,1983.2,7.64306904]
[1771347759127,0.0011,1984.4,1983.4,0.495]
[1771347759695,0.0011,1984.4,1983.6,7.15528298]
[1771347759897,0.0011,1984.4,1983.5,0.48778606]
[1771347760126,0.0011,1984.4,1983.1,0.48778606]
[1771347760306,0.0011,1984.4,1983.1,8.13806904]
[1771347760906,0.0011,1984.4,1983.2,0.48778606]
[1771347761798,0.0011,1984.4,1983.3,0.494]
[1771347762300,0.0011,1984.4,1983.3,0.98178606]
[1771347762510,0.0011,1984.4,1983.4,7.64306904]
[1771347763309,0.0011,1984.4,1983.4,0.48778606]
[1771347763507,0.0011,1984.4,1983.3,0.495]
[1771347764507,0.0011,1984.4,1983.4,0.4850083]
[1771347764935,0.0011,1984.4,1983.6,7.64029128]
[1771347765350,0.0011,1984.7,1984.3,7.15528298]
[1771347765508,0.0011,1985.3,1984.6,7.15528298]
[1771347765708,0.68533669,1986.2,1984.6,7.15528298]
[1771347766022,0.25133669,1985.9,1984.5,8.13629128]
[1771347766225,0.78773669,1986.2,1984.6,0.4850083]
[1771347767019,0.25133669,1985.9,1984.4,0.496]
[1771347767221,7.15528298,1986.1,1984.3,0.496]
[1771347767222,1.15933669,1985.6,1984.3,0.496]
[1771347767649,0.25133669,1985.5,1984.2,0.4850083]
[1771347767815,0.25133669,1985.3,1984.0,0.425]
[1771347768217,0.25133669,1985.3,1983.9,0.9810083]
[1771347768743,13.47152169,1985.2,1983.6,7.15528298]
[1771347768944,0.25133669,1985.1,1983.7,0.496]
[1771347769646,0.25133669,1985.1,1983.6,0.495]
[1771347769816,0.25133669,1984.9,1983.6,0.495]
[1771347770012,0.908,1984.8,1983.6,0.495]
[1771347770662,0.908,1984.8,1983.6,0.9800083]
[1771347771253,0.908,1984.8,1983.6,8.13529128]
[1771347771618,3.113169,1984.9,1983.6,8.13529128]
[1771347771858,0.908,1984.9,1983.6,8.13529128]
[1771347772452,1.15933669,1984.9,1983.6,0.4850083]
[1771347772660,1.15933669,1984.9,1983.5,0.496]
[1771347772959,1.15933669,1984.9,1983.5,0.98065632]
[1771347773848,1.15933669,1984.9,1983.5,0.48565632]
[1771347774624,0.908,1984.9,1983.5,0.48565632]
[1771347774823,0.908,1984.9,1983.6,7.6399393]
[1771347777369,0.908,1984.9,1983.6,0.48465632]
[1771347778054,0.25133669,1984.8,1983.5,0.001]
[1771347778833,0.25133669,1984.6,1983.5,0.001]
[1771347780670,0.25033669,1984.2,1983.2,0.001]
[1771347780956,0.25033669,1983.8,1982.3,0.48465632]
[1771347781368,0.908,1983.7,1982.3,0.48465632]
[1771347781567,1.15833669,1983.7,1982.3,0.48465632]
[1771347781746,1.15833669,1983.7,1981.9,7.15528298]
[1771347781747,0.25033669,1983.5,1982.0,0.48465632]
[1771347782135,0.25033669,1983.2,1981.6,0.48565632]
[1771347783038,0.25033669,1982.8,1981.6,0.001]
[1771347783373,0.25033669,1982.6,1981.6,0.001]
[1771347783667,0.25033669,1982.6,1982.3,0.001]
[1771347783843,0.25033669,1982.6,1981.6,0.001]
[1771347784476,0.908,1982.7,1982.1,0.001]
[1771347785156,0.35273669,1982.6,1981.6,0.001]
[1771347785467,7.40561967,1982.1,1981.4,0.001]
[1771347785653,7.15528298,1981.8,1980.6,0.48465632]
[1771347785971,0.686,1981.9,1980.6,0.48465632]
[1771347786538,1.26147946,1981.8,1980.6,0.48465632]
[1771347786738,20.766843,1981.7,1980.4,1.26232241]
[1771347786970,20.766843,1981.7,1980.2,1.74712788]
[1771347786971,22.015238,1981.6,1980.2,1.74712788]
[1771347787146,0.25033669,1981.6,1980.2,1.74712788]
[1771347787470,0.25033669,1981.4,1979.9,1.74734635]
[1771347787670,0.909,1981.3,1980.0,0.48465632]
[1771347787970,8.41676244,1981.8,1980.2,0.48465632]
[1771347788155,1.595,1981.7,1980.5,0.48465632]
[1771347788470,5.95491785,1981.9,1980.7,0.48465632]
[1771347789238,5.04465462,1982.3,1980.7,7.15528298]
[1771347789446,2.8562249,1982.2,1980.8,0.48465632]
[1771347790275,3.10656159,1982.2,1980.8,0.48465632]
[1771347790575,0.25033669,1982.0,1980.6,1.74690008]
[1771347790871,2.8562249,1982.2,1980.7,0.48465632]
[1771347791577,2.8562249,1982.2,1980.8,0.48465632]
[1771347792175,1.26119801,1982.3,1981.1,0.48465632]
[1771347792677,1.26119801,1982.3,1981.2,1.74651781]
[1771347793275,1.26119801,1982.3,1981.0,5.0477477]
[1771347793276,7.900907,1982.2,1981.0,5.0477477]
[1771347794073,2.136638,1982.2,1981.0,5.0477477]
[1771347794275,1.5115347,1982.3,1981.0,5.0477477]
[1771347794478,3.110588,1982.2,1981.0,5.0477477]
[1771347794656,1.26128853,1982.1,1981.0,5.0477477]
[1771347795947,1.51162522,1982.1,1981.0,1.26198889]